[Event "Central-SRB chT 2018"]
[Site "Kragujevac"]
[Date "2018.09.16"]
[Round "4"]
[White "Aleksic, Milan"]
[Black "Radovic, Janko"]
[Result "0-1"]
[ECO "B90"]
[WhiteElo "2257"]
[BlackElo "2405"]
[Annotator "ChessBase"]
[PlyCount "43"]
[EventDate "2018.09.14"]
[EventType "team-tourn"]
[EventCountry "SRB"]
[SourceTitle "playchess.com"]
[Source "ChessBase"]
[SourceQuality "1"]
[TimeControl "40/5400+30:1800+30"]

1. e4 {[%emt 0:00:00]} c5 {[%emt 0:00:00]} 2. Nf3 {[%emt 0:00:00]} d6 {[%emt 0:00:00]} 3. d4 {[%emt 0:00:22]} cxd4 {[%emt 0:00:00]} 4. Nxd4 {[%emt 0:00:14]} Nf6 {[%emt 0:00:00]} 5. Nc3 {[%emt 0:00:23]} a6 {[%emt 0:00:00]} 6. f3 {[%emt 0:00:58]} e5 {[%emt 0:05:37]} 7. Nb3 {[%emt 0:00:51]} Be6 {[%emt 0:00:04]} 8. Be3 {[%emt 0:01:25]} Nbd7 {[%emt 0:00:08]} 9. Qd2 {[%emt 0:01:27]} Be7 {[%emt 0:00:05]} 10. O-O-O {[%emt 0:01:48]} O-O {[%emt 0:00:06]} 11. g4 {[%emt 0:01:55]} b5 {[%emt 0:00:09]} 12. a3 {[%emt 0:03:14]} Nb6 {[%emt 0:05:22]} 13. Na5 {[%emt 0:05:34]} Qc7 {[%emt 0:03:50]} 14. g5 {[%emt 0:19:40]} Nfd7 {[%emt 0:12:05]} 15. h4 {[%emt 0:04:36]} Rfc8 {[%emt 0:09:41]} 16. Rh2 {[%emt 0:04:42]} Rab8 {[%emt 0:02:51]} 17. h5 {[%emt 0:02:19]} Nc4 {[%emt 0:03:44]} 18. Nxc4 {[%emt 0:32:33]} bxc4 {[%emt 0:00:32]} 19. g6 {[%emt 0:16:51]} Qb7 {[%emt 0:05:03]} 20. gxf7+ {[%emt 0:00:06]} Bxf7 {[%emt 0:02:39]} 21. Na4 c3 22. Nxc3 0-1

[Event "Central-SRB chT 2018"]
[Site "Kragujevac"]
[Date "2018.09.17"]
[Round "5"]
[White "Savicevic, Vlatko"]
[Black "Soysal, Serkan"]
[Result "1/2-1/2"]
[ECO "C65"]
[WhiteElo "2338"]
[BlackElo "2404"]
[Annotator "RC"]
[PlyCount "39"]
[EventDate "2018.09.14"]
[EventType "team-tourn"]
[EventCountry "SRB"]
[SourceTitle "playchess.com"]
[Source "ChessBase"]
[SourceQuality "1"]
[TimeControl "40/5400+30:1800+30"]

1. e4 {[%emt 0:00:00]} e5 {[%emt 0:00:04]} 2. Nf3 {[%emt 0:00:22]} Nc6 {[%emt 0:00:03]} 3. Bb5 {[%emt 0:00:40]} Nf6 {[%emt 0:02:10]} 4. d3 {[%emt 0:04:21]} Bc5 {[%emt 0:00:28]} 5. Bxc6 {[%emt 0:00:34]} dxc6 {[%emt 0:00:19]} 6. Qe2 {[%emt 0:00:56]} Qe7 {[%emt 0:09:00]} 7. Nbd2 {[%emt 0:01:19]} Bg4 {[%emt 0:05:12]} 8. h3 {[%emt 0:03:37]} Bxf3 {[%emt 0:01:10]} 9. Nxf3 {[%emt 0:01:39]} Nd7 {[%emt 0:00:16]} 10. c3 {[%emt 0:13:35]} O-O {[%emt 0:04:23]} 11. O-O {[%emt 0:01:22]} a5 {[%emt 0:07:35]} 12. Be3 {[%emt 0:12:44]} Rfe8 {[%emt 0:01:55]} 13. Rfe1 {[%emt 0:01:17]} Rad8 {[%emt 0:00:48]} 14. Rad1 {[%emt 0:03:08]} Qe6 {[%emt 0:05:32]} 15. a3 {[%emt 0:05:58]} Bxe3 {[%emt 0:04:31]} 16. Qxe3 {[%emt 0:02:18]} Qb3 {[%emt 0:03:24]} 17. Rd2 {[%emt 0:01:03]} c5 {[%emt 0:03:01]} 18. Nh4 {[%emt 0:06:16]} Qb6 {[%emt 0:02:12]} 19. Nf5 {[%emt 0:07:15]} f6 20. Qg3 1/2-1/2

[Event "Central-SRB chT 2018"]
[Site "Kragujevac"]
[Date "2018.09.17"]
[Round "5"]
[White "Adzic, Momcilo"]
[Black "Radovic, Luka"]
[Result "1/2-1/2"]
[ECO "B23"]
[WhiteElo "2265"]
[BlackElo "2342"]
[Annotator "ChessBase"]
[PlyCount "58"]
[EventDate "2018.09.14"]
[EventType "team-tourn"]
[EventCountry "SRB"]
[SourceTitle "playchess.com"]
[Source "ChessBase"]
[SourceQuality "1"]
[TimeControl "40/5400+30:1800+30"]

1. e4 {[%emt 0:00:00]} c5 {[%emt 0:00:00]} 2. Nc3 {[%emt 0:00:48]} d6 {[%emt 0:00:14]} 3. g3 {[%emt 0:00:25]} g6 {[%emt 0:01:15]} 4. Bg2 {[%emt 0:00:28]} Bg7 {[%emt 0:00:05]} 5. Nge2 {[%emt 0:00:20]} Nc6 {[%emt 0:00:08]} 6. O-O {[%emt 0:00:51]} e6 {[%emt 0:05:25]} 7. d3 {[%emt 0:01:11]} Nge7 {[%emt 0:00:04]} 8. Be3 {[%emt 0:01:15]} Nd4 {[%emt 0:03:26]} 9. Qd2 {[%emt 0:04:21]} O-O {[%emt 0:08:02]} 10. Nd1 {[%emt 0:09:11]} Rb8 {[%emt 0:04:36]} 11. Nxd4 {[%emt 0:08:01]} cxd4 {[%emt 0:02:05]} 12. Bg5 {[%emt 0:03:26]} Qc7 {[%emt 0:10:48]} 13. c4 {[%emt 0:04:14]} b5 {[%emt 0:05:18]} 14. Bxe7 {[%emt 0:08:18]} Qxe7 {[%emt 0:00:17]} 15. cxb5 {[%emt 0:00:31]} Rxb5 {[%emt 0:01:44]} 16. b4 {[%emt 0:01:49]} Qc7 {[%emt 0:17:31]} 17. a4 {[%emt 0:04:39]} Rb8 {[%emt 0:01:08]} 18. Re1 {[%emt 0:02:08]} Bd7 {[%emt 0:01:49]} 19. b5 {[%emt 0:02:37]} a6 {[%emt 0:06:05]} 20. bxa6 {[%emt 0:02:05]} Qb6 {[%emt 0:00:18]} 21. Ra2 {[%emt 0:04:40]} Qb3 {[%emt 0:05:02]} 22. a5 {[%emt 0:01:07]} Bb5 {[%emt 0:02:45]} 23. a7 {[%emt 0:03:54]} Ra8 {[%emt 0:02:50]} 24. Bf1 {[%emt 0:00:40]} Rxa7 {[%emt 0:07:01]} 25. Rb2 {[%emt 0:09:21]} Qa4 {[%emt 0:01:33]} 26. Ra2 {[%emt 0:00:13]} Qb3 {[%emt 0:01:00]} 27. Rb2 {[%emt 0:00:19]} Qa4 {[%emt 0:00:52]} 28. Ra2 {[%emt 0:00:07]} Qb3 {[%emt 0:00:14]} 29. Rb2 {[%emt 0:00:07]} Qa4 {[%emt 0:00:05]} 1/2-1/2

[Event "Central-SRB chT 2018"]
[Site "Kragujevac"]
[Date "2018.09.17"]
[Round "5"]
[White "Matovic, Petar"]
[Black "Stankovic, Dragan P"]
[Result "0-1"]
[ECO "A48"]
[WhiteElo "2045"]
[BlackElo "2229"]
[Annotator "NA"]
[PlyCount "34"]
[EventDate "2018.09.14"]
[EventType "team-tourn"]
[EventCountry "SRB"]
[SourceTitle "playchess.com"]
[Source "ChessBase"]
[SourceQuality "1"]
[TimeControl "40/5400+30:1800+30"]

1. d4 Nf6 2. Nf3 g6 3. Bf4 Bg7 4. e3 O-O 5. Be2 c5 6. O-O Qb6 7. Qc1 Nc6 8. c3 d5 9. Nbd2 Bf5 10. b3 Rac8 11. Qb2 Nh5 12. Bg5 h6 13. Bh4 g5 14. dxc5 Qxc5 15. Nd4 Nf4 $19 ({Inferior is} 15... gxh4 16. Nxf5 Bxc3 17. Rac1 $11 (17. Nxh6+ $2 Kh7 $19)) 16. b4 Nxe2+ 17. Nxe2 Qb5 0-1

[Event "Central-SRB chT 2018"]
[Site "Kragujevac"]
[Date "2018.09.18"]
[Round "7"]
[White "Mijailovic, Zoran"]
[Black "Jovanovic, Bojan P"]
[Result "1/2-1/2"]
[ECO "B06"]
[WhiteElo "2400"]
[BlackElo "2275"]
[Annotator "RC"]
[PlyCount "114"]
[EventDate "2018.09.14"]
[EventType "team-tourn"]
[EventCountry "SRB"]
[SourceTitle "playchess.com"]
[Source "ChessBase"]
[SourceQuality "1"]
[TimeControl "40/5400+30:1800+30"]

1. d4 {[%emt 0:00:00]} g6 {[%emt 0:00:00]} 2. e4 {[%emt 0:00:00]} Bg7 {[%emt 0:00:00]} 3. c4 {[%emt 0:00:20]} d6 {[%emt 0:00:00]} 4. Nc3 {[%emt 0:00:18]} e5 {[%emt 0:00:47]} 5. Nf3 {[%emt 0:00:19]} Bg4 {[%emt 0:00:58]} 6. d5 {[%emt 0:00:21]} Bxf3 {[%emt 0:00:37]} 7. Qxf3 {[%emt 0:00:55]} Nd7 {[%emt 0:04:58]} 8. h4 {[%emt 0:08:56]} h5 {[%emt 0:01:33]} 9. g3 {[%emt 0:03:09]} Bh6 {[%emt 0:00:32]} 10. Bh3 {[%emt 0:04:31]} Bxc1 {[%emt 0:00:48]} 11. Rxc1 {[%emt 0:00:24]} a5 {[%emt 0:00:12]} 12. Na4 {[%emt 0:07:07]} Nc5 {[%emt 0:04:05]} 13. Nxc5 {[%emt 0:01:29]} dxc5 {[%emt 0:00:11]} 14. Qe3 {[%emt 0:01:42]} Qe7 {[%emt 0:03:37]} 15. f4 {[%emt 0:06:29]} Nf6 {[%emt 0:02:12]} 16. O-O {[%emt 0:05:07]} O-O {[%emt 0:06:35]} 17. f5 {[%emt 0:07:06]} Kg7 {[%emt 0:04:56]} 18. Rc2 {[%emt 0:07:42]} Ra6 {[%emt 0:21:02]} 19. Rcf2 {[%emt 0:07:14]} Nh7 {[%emt 0:04:25]} 20. fxg6 {[%emt 0:03:04]} fxg6 {[%emt 0:05:58]} 21. Be6 {[%emt 0:00:28]} Rxf2 {[%emt 0:02:41]} 22. Rxf2 {[%emt 0:00:18]} Nf6 {[%emt 0:00:27]} 23. Qg5 {[%emt 0:08:00]} Rxe6 {[%emt 0:00:13]} 24. dxe6 {[%emt 0:00:09]} Qxe6 {[%emt 0:00:03]} 25. Rf1 {[%emt 0:05:01]} Qd6 {[%emt 0:04:20]} 26. Qe3 {[%emt 0:03:41]} Qd4 {[%emt 0:02:45]} 27. Qxd4 {[%emt 0:00:18]} cxd4 {[%emt 0:00:06]} 28. Re1 {[%emt 0:00:52]} c5 {[%emt 0:00:55]} 29. Kf2 {[%emt 0:01:20]} Kf7 {[%emt 0:00:17]} 30. Kf3 {[%emt 0:00:46]} Ke6 {[%emt 0:01:15]} 31. Rd1 {[%emt 0:01:02]} Kd6 {[%emt 0:00:24]} 32. Rb1 {[%emt 0:04:22]} Ng4 {[%emt 0:01:17]} 33. Ke2 {[%emt 0:00:37]} Ne3 {[%emt 0:00:22]} 34. Kd3 {[%emt 0:00:39]} Kc6 {[%emt 0:01:50]} 35. Re1 {[%emt 0:03:25]} b5 {[%emt 0:05:05]} 36. b3 {[%emt 0:00:20]} b4 {[%emt 0:02:22]} 37. Re2 {[%emt 0:03:05]} Ng4 {[%emt 0:00:06]} 38. a3 {[%emt 0:00:31]} bxa3 {[%emt 0:00:11]} 39. Ra2 {[%emt 0:00:28]} Kb6 {[%emt 0:00:16]} 40. Ke2 {[%emt 0:00:00]} Ka6 {[%emt 0:00:00]} 41. Rxa3 {[%emt 0:00:54]} Kb6 {[%emt 0:02:15]} 42. Ra1 {[%emt 0:00:50]} Ne3 {[%emt 0:00:11]} 43. Kd3 {[%emt 0:04:05]} Ka6 {[%emt 0:01:03]} 44. Ra2 {[%emt 0:00:55]} Ng4 {[%emt 0:00:27]} 45. Rd2 {[%emt 0:01:09]} Kb6 {[%emt 0:00:17]} 46. Rc2 {[%emt 0:02:45]} Kc6 {[%emt 0:00:39]} 47. Ke2 {[%emt 0:02:03]} Kb6 {[%emt 0:00:32]} 48. Rc1 {[%emt 0:00:44]} Ne3 {[%emt 0:00:14]} 49. Ra1 {[%emt 0:03:45]} Ka6 {[%emt 0:00:11]} 50. Rh1 {[%emt 0:00:10]} Kb6 {[%emt 0:00:08]} 51. Kd3 {[%emt 0:06:36]} Kc6 {[%emt 0:01:10]} 52. Re1 {[%emt 0:00:28]} Kb6 {[%emt 0:00:13]} 53. Ra1 {[%emt 0:00:13]} Ka6 {[%emt 0:00:06]} 54. Rh1 {[%emt 0:00:47]} Kb6 {[%emt 0:00:37]} 55. g4 hxg4 56. h5 gxh5 57. Rxh5 g3 1/2-1/2

[Event "Central-SRB chT 2018"]
[Site "Kragujevac"]
[Date "2018.09.18"]
[Round "7"]
[White "Radivojevic, Ivan"]
[Black "Todorovic, Nenad I"]
[Result "1/2-1/2"]
[ECO "B23"]
[WhiteElo "2360"]
[BlackElo "2291"]
[Annotator "ChessBase"]
[PlyCount "28"]
[EventDate "2018.09.14"]
[EventType "team-tourn"]
[EventCountry "SRB"]
[SourceTitle "playchess.com"]
[Source "ChessBase"]
[SourceQuality "1"]
[TimeControl "40/5400+30:1800+30"]

1. e4 {[%emt 0:00:00]} c5 {[%emt 0:00:00]} 2. Nc3 {[%emt 0:00:00]} Nc6 {[%emt 0:00:16]} 3. Nge2 {[%emt 0:02:42]} e5 {[%emt 0:14:01]} 4. Nd5 {[%emt 0:00:20]} Nge7 {[%emt 0:05:48]} 5. Nec3 {[%emt 0:00:58]} d6 {[%emt 0:06:24]} 6. Bc4 {[%emt 0:03:34]} Nxd5 {[%emt 0:00:24]} 7. Nxd5 {[%emt 0:01:34]} Be7 {[%emt 0:01:18]} 8. d3 {[%emt 0:04:28]} O-O {[%emt 0:01:27]} 9. O-O {[%emt 0:00:09]} Be6 {[%emt 0:03:13]} 10. c3 {[%emt 0:08:35]} Rb8 {[%emt 0:12:04]} 11. a4 {[%emt 0:03:15]} Bg5 {[%emt 0:01:52]} 12. Be3 {[%emt 0:09:42]} Bxe3 {[%emt 0:03:54]} 13. Nxe3 {[%emt 0:00:21]} Qd7 {[%emt 0:00:47]} 14. Qd2 {[%emt 0:06:43]} Rbc8 {[%emt 0:12:55]} 1/2-1/2

[Event "Central-SRB chT 2018"]
[Site "Kragujevac"]
[Date "2018.09.18"]
[Round "7"]
[White "Markovic, Zoran S"]
[Black "Gavrilovic, Leonardo"]
[Result "1/2-1/2"]
[ECO "B04"]
[WhiteElo "2346"]
[BlackElo "2243"]
[Annotator "ChessBase"]
[PlyCount "90"]
[EventDate "2018.09.14"]
[EventType "team-tourn"]
[EventCountry "SRB"]
[SourceTitle "playchess.com"]
[Source "ChessBase"]
[SourceQuality "1"]
[TimeControl "40/5400+30:1800+30"]

1. e4 Nf6 {[%emt 0:00:00]} 2. e5 {[%emt 0:00:00]} Nd5 3. d4 {[%emt 0:00:00]} d6 {[%emt 0:00:00]} 4. Nf3 {[%emt 0:00:00]} g6 {[%emt 0:00:34]} 5. Bc4 {[%emt 0:00:45]} Nb6 {[%emt 0:00:45]} 6. Bb3 {[%emt 0:00:18]} Bg7 {[%emt 0:00:13]} 7. a4 {[%emt 0:00:51]} a5 {[%emt 0:00:07]} 8. Qe2 {[%emt 0:02:02]} Nc6 {[%emt 0:03:08]} 9. O-O {[%emt 0:04:55]} d5 {[%emt 0:00:11]} 10. h3 {[%emt 0:01:50]} O-O {[%emt 0:00:20]} 11. c3 {[%emt 0:05:33]} f6 {[%emt 0:06:38]} 12. exf6 {[%emt 0:06:48]} exf6 {[%emt 0:00:09]} 13. Re1 {[%emt 0:05:06]} Bd7 {[%emt 0:02:06]} 14. Bf4 {[%emt 0:02:13]} Re8 {[%emt 0:00:33]} 15. Qd2 {[%emt 0:01:17]} Ne7 {[%emt 0:02:16]} 16. Re2 {[%emt 0:06:28]} Bc6 {[%emt 0:05:22]} 17. Ne1 {[%emt 0:02:52]} Nc4 {[%emt 0:01:06]} 18. Qc2 {[%emt 0:06:46]} Qd7 {[%emt 0:04:03]} 19. Nd3 {[%emt 0:02:58]} b6 {[%emt 0:00:23]} 20. Nd2 {[%emt 0:03:00]} Nxd2 {[%emt 0:00:20]} 21. Qxd2 {[%emt 0:00:28]} Nf5 {[%emt 0:02:22]} 22. Rae1 Kf7 {[%emt 0:01:12]} 23. Bc2 {[%emt 0:11:45]} Nd6 {[%emt 0:00:32]} 24. Rxe8 {[%emt 0:00:22]} Rxe8 {[%emt 0:00:28]} 25. Rxe8 {[%emt 0:00:20]} Kxe8 {[%emt 0:00:30]} 26. b3 {[%emt 0:04:07]} Bf8 {[%emt 0:01:38]} 27. f3 {[%emt 0:09:11]} Qc8 {[%emt 0:08:54]} 28. Nf2 {[%emt 0:03:56]} Bd7 {[%emt 0:01:16]} 29. Ng4 {[%emt 0:02:38]} Kf7 {[%emt 0:03:30]} 30. Bg3 {[%emt 0:02:20]} Nf5 {[%emt 0:03:46]} 31. Bxf5 {[%emt 0:05:21]} Bxf5 {[%emt 0:00:11]} 32. Nh6+ {[%emt 0:01:05]} Kg7 {[%emt 0:05:58]} 33. Qf4 {[%emt 0:02:33]} Bc2 {[%emt 0:00:11]} 34. Ng4 {[%emt 0:00:53]} Be7 {[%emt 0:00:27]} 35. Qxc7 {[%emt 0:00:55]} Qe6 {[%emt 0:00:24]} 36. c4 {[%emt 0:06:02]} Bxb3 {[%emt 0:00:11]} 37. c5 bxc5 {[%emt 0:00:06]} 38. dxc5 {[%emt 0:00:34]} h5 {[%emt 0:02:19]} 39. Nf2 {[%emt 0:01:31]} Bxa4 {[%emt 0:01:52]} 40. Bd6 {[%emt 0:00:00]} Kf8 {[%emt 0:00:00]} 41. Bxe7+ {[%emt 0:07:02]} Qxe7 {[%emt 0:02:12]} 42. Qxa5 {[%emt 0:00:07]} Bd7 {[%emt 0:03:42]} 43. Qc3 {[%emt 0:07:37]} Kf7 {[%emt 0:01:33]} 44. f4 {[%emt 0:01:57]} Qe2 {[%emt 0:04:51]} 45. c6 {[%emt 0:05:02]} Bxc6 {[%emt 0:00:09]} 1/2-1/2

[Event "Central-SRB chT 2018"]
[Site "Kragujevac"]
[Date "2018.09.18"]
[Round "7"]
[White "Paunovic, Tomislav"]
[Black "Djordjevic, Vuk"]
[Result "1/2-1/2"]
[ECO "A05"]
[WhiteElo "2340"]
[BlackElo "2404"]
[Annotator "ChessBase"]
[PlyCount "102"]
[EventDate "2018.09.14"]
[EventType "team-tourn"]
[EventCountry "SRB"]
[SourceTitle "playchess.com"]
[Source "ChessBase"]
[SourceQuality "1"]
[TimeControl "40/5400+30:1800+30"]

1. Nf3 {[%emt 0:00:00]} Nf6 {[%emt 0:00:00]} 2. g3 {[%emt 0:00:05]} d5 {[%emt 0:00:00]} 3. Bg2 {[%emt 0:00:21]} e6 {[%emt 0:00:23]} 4. O-O {[%emt 0:00:57]} Be7 {[%emt 0:00:12]} 5. b3 {[%emt 0:01:31]} O-O {[%emt 0:00:46]} 6. Bb2 {[%emt 0:00:38]} b5 {[%emt 0:03:52]} 7. c4 {[%emt 0:03:24]} c6 {[%emt 0:10:20]} 8. Ne5 {[%emt 0:10:39]} Nfd7 {[%emt 0:02:53]} 9. cxb5 {[%emt 0:07:58]} Nxe5 {[%emt 0:12:50]} 10. Bxe5 {[%emt 0:00:50]} cxb5 {[%emt 0:00:18]} 11. Bb2 {[%emt 0:09:18]} a5 {[%emt 0:01:11]} 12. Nc3 {[%emt 0:04:11]} b4 {[%emt 0:02:11]} 13. Na4 {[%emt 0:01:43]} Bd7 {[%emt 0:16:16]} 14. e4 {[%emt 0:10:27]} Bxa4 {[%emt 0:03:31]} 15. bxa4 {[%emt 0:00:34]} dxe4 {[%emt 0:06:53]} 16. Qg4 {[%emt 0:07:27]} Bf6 {[%emt 0:00:36]} 17. Bxf6 {[%emt 0:00:39]} Qxf6 {[%emt 0:00:07]} 18. Qxe4 {[%emt 0:00:26]} Ra6 {[%emt 0:03:59]} 19. a3 {[%emt 0:01:15]} Rb6 {[%emt 0:02:41]} 20. Rab1 {[%emt 0:02:51]} Na6 {[%emt 0:01:51]} 21. Qc4 {[%emt 0:05:12]} Qd8 {[%emt 0:03:49]} 22. axb4 {[%emt 0:01:46]} Nxb4 {[%emt 0:01:46]} 23. d4 {[%emt 0:03:11]} Qd7 {[%emt 0:07:12]} 24. Qc5 {[%emt 0:05:15]} Ra6 {[%emt 0:00:05]} 25. Rfd1 {[%emt 0:02:39]} Rc8 {[%emt 0:06:48]} 26. Qb5 {[%emt 0:00:58]} Qxb5 {[%emt 0:07:53]} 27. axb5 {[%emt 0:00:03]} Rb6 {[%emt 0:00:04]} 28. Bf1 {[%emt 0:01:02]} g6 {[%emt 0:02:10]} 29. Ra1 {[%emt 0:06:35]} Ra8 {[%emt 0:00:07]} 30. Ra4 {[%emt 0:01:06]} Kg7 {[%emt 0:01:25]} 31. Rda1 {[%emt 0:01:20]} Rd8 {[%emt 0:00:12]} 32. Rxa5 {[%emt 0:02:46]} Nc2 {[%emt 0:01:32]} 33. Rd1 {[%emt 0:02:41]} Nxd4 {[%emt 0:00:36]} 34. Kg2 {[%emt 0:00:45]} e5 {[%emt 0:00:15]} 35. f4 {[%emt 0:03:05]} Rc8 {[%emt 0:00:09]} 36. fxe5 {[%emt 0:00:39]} Rc2+ {[%emt 0:00:07]} 37. Kh1 {[%emt 0:00:15]} Nf3 {[%emt 0:00:19]} 38. Bg2 {[%emt 0:00:06]} Nxe5 {[%emt 0:00:05]} 39. Rb1 {[%emt 0:01:04]} Nc4 {[%emt 0:03:06]} 40. Ra6 {[%emt 0:00:00]} Rxb5 {[%emt 0:00:00]} 41. Rxb5 {[%emt 0:05:17]} Rc1+ {[%emt 0:00:23]} 42. Bf1 {[%emt 0:00:06]} Ne3 {[%emt 0:03:11]} 43. h3 {[%emt 0:02:34]} Rxf1+ {[%emt 0:01:20]} 44. Kh2 {[%emt 0:00:07]} Rf2+ {[%emt 0:00:10]} 45. Kh1 {[%emt 0:00:29]} Rf1+ {[%emt 0:01:25]} 46. Kh2 {[%emt 0:00:18]} Rf3 {[%emt 0:00:13]} 47. Rb2 {[%emt 0:06:28]} Nf5 {[%emt 0:03:08]} 48. Rg2 {[%emt 0:01:00]} Rf1 {[%emt 0:02:09]} 49. Raa2 {[%emt 0:01:41]} h5 {[%emt 0:00:45]} 50. Rgf2 {[%emt 0:00:54]} Rd1 {[%emt 0:00:35]} 51. Rfd2 {[%emt 0:00:45]} Rc1 {[%emt 0:00:27]} 1/2-1/2

[Event "Central-SRB chT 2018"]
[Site "Kragujevac"]
[Date "2018.09.18"]
[Round "7"]
[White "Radosavljevic, Slobodan S"]
[Black "Dimitrijevic, Radmilo"]
[Result "0-1"]
[ECO "D24"]
[WhiteElo "2106"]
[BlackElo "2247"]
[Annotator "NA"]
[PlyCount "50"]
[EventDate "2018.09.14"]
[EventType "team-tourn"]
[EventCountry "SRB"]
[SourceTitle "playchess.com"]
[Source "ChessBase"]
[SourceQuality "1"]
[TimeControl "40/5400+30:1800+30"]

1. d4 d5 2. Nf3 Nf6 3. c4 dxc4 4. Nc3 a6 {LiveBook: 774 Games} 5. a4 Nc6 6. e4 Bg4 7. e5 {D24: Queen's Gambit Accepted: 3 Nf3 Nf6 4 Nc3} (7. Be3 Bxf3 8. gxf3 e5 9. dxe5 Nxe5 10. f4 Nd3+ 11. Bxd3 cxd3 12. Qb3 Be7 13. O-O-O O-O 14. Rhg1 b5 15. e5 Nd7 16. Rxd3 Qc8 {0-1 (30) Ivanchuk,V (2710)-Dominguez Perez,L (2732) Huaian 2016}) 7... Bxf3 8. gxf3 Nd5 9. Bxc4 Nb6 10. Bxf7+ $146 ({Predecessor:} 10. Ba2 Qxd4 11. Qb3 e6 12. Be3 Qb4 13. f4 Rd8 14. Bxb6 cxb6 15. Qxb4 Nxb4 {0-1 (51) Solymosi,I (2177)-Farkas,R (2117) Hungary 2012}) 10... Kxf7 11. e6+ Kxe6 12. Qb3+ Nd5 13. O-O Ncb4 14. Nxd5 Nxd5 15. Qxb7 Kf7 16. Re1 e6 17. Bd2 Bd6 18. Re4 Qd7 19. Qb3 Rhe8 20. f4 Kg8 $19 21. f5 Qf7 22. Rxe6 Qxf5 23. Re5 Rxe5 24. dxe5 Qxe5 25. Bf4 Qe6 0-1

[Event "Central-SRB chT 2018"]
[Site "Kragujevac"]
[Date "2018.09.18"]
[Round "7"]
[White "Arandjelovic, Aleksandar Z"]
[Black "Rajkovic, Mladen"]
[Result "0-1"]
[ECO "D85"]
[WhiteElo "2041"]
[BlackElo "2304"]
[Annotator "ChessBase"]
[PlyCount "168"]
[EventDate "2018.09.14"]
[EventType "team-tourn"]
[EventCountry "SRB"]
[SourceTitle "playchess.com"]
[Source "ChessBase"]
[SourceQuality "1"]
[TimeControl "40/5400+30:1800+30"]

1. d4 {[%emt 0:02:04]} Nf6 {[%emt 0:01:49]} 2. c4 {[%emt 0:00:30]} g6 {[%emt 0:00:06]} 3. Nc3 {[%emt 0:00:49]} d5 {[%emt 0:00:06]} 4. cxd5 {[%emt 0:00:08]} Nxd5 {[%emt 0:00:05]} 5. e4 {[%emt 0:00:06]} Nxc3 {[%emt 0:00:04]} 6. bxc3 {[%emt 0:00:10]} Bg7 {[%emt 0:00:02]} 7. Nf3 {[%emt 0:00:07]} O-O {[%emt 0:00:07]} 8. Be2 {[%emt 0:00:07]} c5 {[%emt 0:00:12]} 9. Rb1 {[%emt 0:00:07]} b6 {[%emt 0:00:06]} 10. O-O {[%emt 0:02:27]} Bb7 {[%emt 0:01:17]} 11. Qd3 {[%emt 0:02:41]} Ba6 {[%emt 0:00:41]} 12. Qe3 {[%emt 0:00:08]} Qc8 {[%emt 0:04:51]} 13. Re1 {[%emt 0:22:06]} Bxe2 {[%emt 0:09:02]} 14. Qxe2 {[%emt 0:03:00]} Qa6 {[%emt 0:05:56]} 15. Qb2 {[%emt 0:04:33]} cxd4 {[%emt 0:05:55]} 16. cxd4 {[%emt 0:00:40]} Nc6 {[%emt 0:00:07]} 17. Be3 {[%emt 0:00:58]} Rac8 {[%emt 0:03:09]} 18. Qb3 {[%emt 0:06:57]} e6 {[%emt 0:10:20]} 19. h4 {[%emt 0:03:15]} Rfd8 {[%emt 0:00:46]} 20. Bg5 {[%emt 0:01:55]} Nxd4 {[%emt 0:02:17]} 21. Nxd4 {[%emt 0:05:05]} Rxd4 {[%emt 0:00:06]} 22. e5 {[%emt 0:02:48]} Qd3 {[%emt 0:08:51]} 23. Rbc1 {[%emt 0:16:02]} Qa6 {[%emt 0:19:53]} 24. Rxc8+ {[%emt 0:05:40]} Qxc8 {[%emt 0:00:02]} 25. Rc1 {[%emt 0:00:29]} Qd7 {[%emt 0:01:12]} 26. Qf3 {[%emt 0:07:29]} Bxe5 {[%emt 0:02:27]} 27. h5 {[%emt 0:00:36]} Rd5 {[%emt 0:07:16]} 28. h6 {[%emt 0:02:18]} f5 {[%emt 0:02:09]} 29. Re1 {[%emt 0:02:14]} Kf7 {[%emt 0:01:06]} 30. g3 {[%emt 0:00:50]} Bf6 {[%emt 0:01:29]} 31. Bxf6 {[%emt 0:02:17]} Kxf6 {[%emt 0:00:01]} 32. Qc3+ {[%emt 0:01:16]} Rd4 {[%emt 0:00:51]} 33. f4 {[%emt 0:01:23]} Ke7 {[%emt 0:00:42]} 34. Qa3+ {[%emt 0:00:29]} Kf7 {[%emt 0:00:58]} 35. Qc3 {[%emt 0:00:40]} Qd8 {[%emt 0:05:04]} 36. Kh2 {[%emt 0:01:25]} g5 {[%emt 0:05:07]} 37. fxg5 {[%emt 0:01:13]} Rd2+ {[%emt 0:00:13]} 38. Kh3 {[%emt 0:00:32]} Qxg5 {[%emt 0:00:02]} 39. Qc7+ {[%emt 0:00:42]} Qe7 {[%emt 0:03:07]} 40. Qc3 {[%emt 0:00:00]} Qg5 {[%emt 0:00:00]} 41. Qc7+ {[%emt 0:02:34]} Kf8 {[%emt 0:03:34]} 42. Qb8+ {[%emt 0:05:59]} Rd8 {[%emt 0:09:05]} 43. Qf4 {[%emt 0:00:27]} Qxf4 {[%emt 0:00:40]} 44. gxf4 {[%emt 0:00:02]} Kf7 {[%emt 0:00:21]} 45. Kh4 {[%emt 0:01:30]} Rg8 {[%emt 0:04:38]} 46. Rc1 {[%emt 0:00:46]} Rg4+ {[%emt 0:00:09]} 47. Kh5 {[%emt 0:00:13]} Rxf4 {[%emt 0:01:05]} 48. Rc7+ {[%emt 0:04:29]} Kf6 {[%emt 0:00:05]} 49. Rxh7 {[%emt 0:00:44]} Rf1 {[%emt 0:02:29]} 50. Kh4 {[%emt 0:00:28]} Rh1+ {[%emt 0:00:21]} 51. Kg3 {[%emt 0:00:14]} Kg5 {[%emt 0:00:26]} 52. Rg7+ {[%emt 0:01:20]} Kxh6 {[%emt 0:00:07]} 53. Rxa7 {[%emt 0:00:13]} Kg5 {[%emt 0:00:35]} 54. Rg7+ {[%emt 0:01:23]} Kf6 {[%emt 0:00:02]} 55. Rb7 {[%emt 0:00:23]} Ra1 {[%emt 0:00:08]} 56. Ra7 {[%emt 0:01:28]} Rb1 {[%emt 0:00:09]} 57. Ra8 {[%emt 0:01:38]} Rb5 {[%emt 0:00:08]} 58. Kf4 {[%emt 0:01:15]} Rb4+ {[%emt 0:00:22]} 59. Ke3 {[%emt 0:00:12]} b5 {[%emt 0:00:04]} 60. Rf8+ {[%emt 0:00:29]} Ke5 {[%emt 0:00:13]} 61. Rb8 {[%emt 0:00:09]} Rb2 {[%emt 0:00:38]} 62. Rb7 {[%emt 0:00:34]} Rxa2 {[%emt 0:00:07]} 63. Rxb5+ {[%emt 0:00:17]} Kf6 {[%emt 0:00:06]} 64. Rb6 {[%emt 0:00:14]} Ra4 {[%emt 0:00:07]} 65. Kf3 {[%emt 0:00:19]} Rd4 {[%emt 0:01:11]} 66. Ra6 {[%emt 0:00:32]} f4 {[%emt 0:00:37]} 67. Ra8 {[%emt 0:00:20]} Kf5 {[%emt 0:00:34]} 68. Rf8+ {[%emt 0:00:48]} Ke5 {[%emt 0:00:02]} 69. Ra8 {[%emt 0:00:17]} Rd3+ {[%emt 0:00:10]} 70. Ke2 {[%emt 0:00:24]} Ke4 {[%emt 0:00:29]} 71. Ra4+ {[%emt 0:00:32]} Rd4 {[%emt 0:00:04]} 72. Ra2 {[%emt 0:00:12]} f3+ {[%emt 0:00:28]} 73. Kf2 {[%emt 0:00:10]} e5 {[%emt 0:00:10]} 74. Ke1 {[%emt 0:01:19]} Ke3 {[%emt 0:00:46]} 75. Re2+ {[%emt 0:03:08]} Kf4 {[%emt 0:00:05]} 76. Ra2 {[%emt 0:00:19]} e4 {[%emt 0:00:11]} 77. Ra8 {[%emt 0:00:37]} e3 {[%emt 0:00:46]} 78. Rf8+ {[%emt 0:01:21]} Kg3 {[%emt 0:00:06]} 79. Rg8+ {[%emt 0:00:09]} Rg4 {[%emt 0:00:06]} 80. Rf8 {[%emt 0:00:16]} Kg2 {[%emt 0:00:11]} 81. Rf7 {[%emt 0:00:13]} Ra4 {[%emt 0:00:52]} 82. Rg7+ {[%emt 0:00:11]} Kh3 {[%emt 0:00:03]} 83. Rh7+ {[%emt 0:01:04]} Kg4 {[%emt 0:00:03]} 84. Rg7+ {[%emt 0:00:13]} Kh5 {[%emt 0:00:06]} 0-1